Cogmind - Beta 9.6 @@@ ROGUE MODE // 2020.09.13 @ 20:19:37 Player: animal_waves Result: Destroyed by D-53 Grenadier with Mini Grenade Launcher Performance ------------- Evolutions (0) 0 Regions Visited (2) 400 Robots Destroyed (26) 130 Value Destroyed (272) 272 Prototype IDs (2) 40 Alien Tech Used (0) 0 Bonus (-25) -25 TOTAL SCORE: 817 Bonus ------- Friendly Fire -25 Cogmind --------- Core Integrity 0/250 Matter 160/300 Energy 100/100 System Corruption 0% Temperature Cool (0) Movement Core (100) Ox1 Location -10/Mines Parts ------- > --- POWER (1) -------- (None) > --- PROPULSION (2) --- (None) > --- UTILITY (2) ------ Small Storage Unit Improved Targeting Computer > --- WEAPON (2) ------- (None) > --- INVENTORY (6) ---- Sensor Array Signal Interpreter Improved Targeting Computer Improved Targeting Computer Peak State ------------ > --- POWER ------------ Ion Engine > --- PROPULSION ------- Light Treads Light Treads > --- UTILITY ---------- Small Storage Unit Improved Targeting Computer > --- WEAPON ----------- Light Assault Rifle Light Assault Rifle > --- INVENTORY -------- Ion Engine Improved Targeting Computer Improved Targeting Computer EM Pulse Gun Light EM Pulse Cannon Mini Grenade Launcher [Rating: 9] Favorites ----------- Power Ion Engine Engine Ion Engine Propulsion Light Treads Treads Light Treads Utility Small Storage Unit Storage Small Storage Unit Processor Improved Targeting Computer Weapon Light Assault Rifle Ballistic Gun Light Assault Rifle Ballistic Cannon Light Cannon Launcher Rocket Launcher Build | -11 -10 -10 ------- Run | Scr Mat Min Slots Evolved . | . . . Power . | . . . Propulsion . | . . . Utility . | . . . Weapon . | . . . Parts Attached 11 | 6 2 3 Power 1 | 1 . . Engine 1 | 1 . . Core . | . . . Reactor . | . . . Propulsion 3 | 2 1 . Treads 3 | 2 1 . Leg . | . . . Wheel . | . . . Hover . | . . . Flight . | . . . Utility 2 | 1 1 . Device . | . . . Storage 1 | 1 . . Processor 1 | . 1 . Hackware . | . . . Protection . | . . . Artifact . | . . . Weapon 5 | 2 . 3 Energy Gun . | . . . Energy Cannon . | . . . Ballistic Gun 3 | 2 . 1 Ballistic Cannon 1 | . . 1 Launcher 1 | . . 1 Special Weapon . | . . . Impact Weapon . | . . . Slashing Weapon . | . . . Piercing Weapon . | . . . Special Melee Weapon . | . . . Unidentified Prototypes . | . . . Parts Lost 7 | . . 7 Power 1 | . . 1 Propulsion 2 | . . 2 Utility . | . . . Weapon 4 | . . 4 Highest Loss Streak 7 | . . 7 Average Slot Usage (%) 98 | . 99 97 Engine 13 | . 14 13 Treads 27 | . 28 26 Storage 14 | . 14 14 Processor 13 | . 13 14 Ballistic Gun 26 | . 28 24 Naked Turns . | . . . Heaviest Build 14 | 11 11 14 Greatest Support 40 | 40 40 40 Greatest Overweight (x) 1 | . . 1 Average Overweight (x) . | . . . Largest Inventory Capacity 6 | 6 6 6 Average Capacity 5 | 5 6 6 Most Carried 6 | 2 6 6 Average Carried 5 | 1 5 5 Final Capacity 6 | 6 6 6 Final Carried 6 | 2 6 4 Class Distribution -------------------- 100% | Mutant Dominant Class ---------------- Mutant | -10/Materials Mutant | -10/Mines Resources | -11 -10 -10 ----------- Run | Scr Mat Min Matter Collected 334 | 174 99 61 Remotely . | . . . Salvage Created 356 | . 238 118 Parts 20 | . 18 2 Haulers Intercepted 1 | . 1 . Recyclers Shooed . | . . . Parts Field Recycled . | . . . Retrieved Matter . | . . . Parts Self-Destructed . | . . . Prevented . | . . . Kills | -11 -10 -10 ------- Run | Scr Mat Min Combat Hostiles Destroyed 23 | . 4 19 Guns 6 | . 4 2 Cannons 1 | . . 1 AOE 16 | . . 16 Classes Destroyed 6 | . 4 2 Builder 1 | . 1 . Hauler 1 | . 1 . Watcher 1 | . 1 . Grunt 5 | . 4 1 Demolisher 1 | . . 1 Assembled 17 | . . 17 Best Kill Streak 19 | . 3 19 Combat Bots Only 19 | . 2 19 Max Kills in Single Turn 4 | . 1 4 Gunslinging . | . . . Exploded 4 | . . 4 Melee . | . . . Uniques/NPCs Destroyed . | . . . Combat | -11 -10 -10 -------- Run | Scr Mat Min Damage Taken 1047 | . 259 788 Core 259 | . 48 211 Absorbed by Shields . | . . . Core Remaining (%) 100 | 100 . . Volleys Fired 54 | . 32 22 Largest 2 | . 2 2 Hottest 53 | . 40 53 Shots Fired 94 | . 64 30 Gun 81 | . 64 17 Cannon 3 | . . 3 Launcher 10 | . . 10 Special . | . . . Kinetic 84 | . 64 20 Thermal . | . . . Explosive 10 | . . 10 Electromagnetic . | . . . Robot Hit Streak 8 | . 8 6 Robot Miss Streak 5 | . 5 1 Penetration Max . | . . . Secondary Targets . | . . . Shots Hit Robots 57 | . 41 16 Core Hits 56 | . 16 40 Critical Hits . | . . . Critical Kills . | . . . Critical Parts Destroyed . | . . . Melee Attacks . | . . . Impact . | . . . Slashing . | . . . Piercing . | . . . Sneak Attacks . | . . . Combat Hostiles . | . . . Follow-up Attacks . | . . . Damage Inflicted 1503 | . 318 1185 Guns 409 | . 318 91 Cannons 58 | . . 58 Explosions 1030 | . . 1030 Melee . | . . . Ramming 6 | . . 6 Kinetic 467 | . 318 149 Thermal . | . . . Explosive 1030 | . . 1030 Electromagnetic . | . . . Impact . | . . . Slashing . | . . . Piercing . | . . . Highest Corruption . | . . . Average Corruption . | . . . Corruption Purged . | . . . Overload Shots . | . . . Overflow Damage . | . . . Projectiles . | . . . Explosions . | . . . Melee . | . . . Knockbacks 1 | . . 1 Impact . | . . . Kinetic 1 | . . 1 Secondary . | . . . Self-Inflicted Damage 2 | . . 2 Shots . | . . . Rammed 2 | . . 2 Targets Rammed 2 | . . 2 Kicked . | . . . Crushed . | . . . Highest Temperature 33 | . 33 20 Average Temperature 14 | . 16 10 Received Heat Transfer 201 | . 141 60 Siege Activations . | . . . Robots Corrupted . | . . . Combat Hostiles . | . . . Parts Fried . | . . . Impact Corruptions . | . . . Robots Melted . | . . . Combat Hostiles . | . . . Parts Melted . | . . . Heat Transferred . | . . . Parts Sabotaged . | . . . Parts Stolen . | . . . Parts Stripped . | . . . Power Chain Reactions . | . . . Missiles Intercepted . | . . . Alert | -11 -10 -10 ------- Run | Scr Mat Min Peak Influence 159 | . 159 68 Average Influence 58 | . 72 55 Maximum Alert Level . | . . . Low Security (%) 100 | 100 100 100 Level 1 . | . . . Level 2 . | . . . Level 3 . | . . . Level 4 . | . . . Level 5 . | . . . High Security . | . . . Max Security . | . . . Squads Dispatched 2 | . 2 . Investigation 1 | . 1 . Extermination . | . . . Reinforcement 1 | . 1 . Assault . | . . . Garrison . | . . . Intercept . | . . . Construction Impeded . | . . . Haulers Reinforced . | . . . Stealth | -11 -10 -10 --------- Run | Scr Mat Min Distress Signals . | . . . Communications Jammed . | . . . Distress Signals . | . . . Times Spotted 31 | . 9 22 Peak Tracking Total 9 | . 3 9 Tactical Retreats . | . . . Traps | -11 -10 -10 ------- Run | Scr Mat Min Traps Triggered . | . . . Indirectly . | . . . Trap Hack Attempts . | . . . Triggered . | . . . Disarmed . | . . . Reprogrammed . | . . . Reused . | . . . Traps Extracted . | . . . Installed . | . . . Triggered . | . . . Machines | -11 -10 -10 ---------- Run | Scr Mat Min Machines Disabled . | . . . Max in Single Turn . | . . . Machines Sabotaged . | . . . Garrisons Compromised . | . . . Overloaded Fab Kills . | . . . Fab Network Shutdowns . | . . . Hacking | -11 -10 -10 --------- Run | Scr Mat Min Machines Accessed 3 | . 2 1 Terminals 3 | . 2 1 Fabricators . | . . . Repair Stations . | . . . Recycling Units . | . . . Scanalyzers . | . . . Garrison Access . | . . . Total Hacks 5 | . 4 1 Successful 3 | . 2 1 Failed 2 | . 2 . Catastrophic 1 | . 1 . Database Lockouts . | . . . Manual 2 | . 2 . Terminals 5 | . 4 1 Fabricators . | . . . Repair Stations . | . . . Recycling Units . | . . . Scanalyzers . | . . . Garrison Access . | . . . Terminal Hacks 3 | . 2 1 Prototype ID Bank 1 | . 1 . Emergency Access Points 1 | . 1 . Patrol Status 1 | . . 1 Fabricator Hacks . | . . . Repair Station Hacks . | . . . Recycling Unit Hacks . | . . . Scanalyzer . | . . . Garrison Access Hacks . | . . . Unauthorized Hacks . | . . . Terminals . | . . . Fabricators . | . . . Repair Stations . | . . . Recycling Units . | . . . Scanalyzers . | . . . Garrison Access . | . . . Data Cores Recovered . | . . . Used . | . . . Hacking Detections 1 | . 1 . Full Trace Events 1 | . 1 . Feedback Events . | . . . Feedback Blocked . | . . . Robot Schematics Acquired . | . . . Robots Built . | . . . Matter . | . . . Time . | . . . Total Robot Build Rating . | . . . Part Schematics Acquired . | . . . Parts Built . | . . . Matter . | . . . Time . | . . . Total Part Build Rating . | . . . Parts Repaired . | . . . Time . | . . . Parts Recycled . | . . . Recycled Matter . | . . . Retrieved Matter . | . . . Retrieved Components . | . . . Parts Scanalyzed . | . . . Part Schematics Acquired . | . . . Parts Damaged . | . . . Bothacking | -11 -10 -10 ------------ Run | Scr Mat Min Used RIF Installer . | . . . Robots Hacked . | . . . Non-combat . | . . . Combat . | . . . Robot Hacks Applied . | . . . Relay Couplers Released . | . . . Robots Rewired . | . . . Allies Hacked . | . . . Hacks Repelled . | . . . Allies | -11 -10 -10 -------- Run | Scr Mat Min Total Allies 3 | . . 3 Largest Group 3 | . . 3 Highest-Rated Group 40 | . . 40 Highest-Rated Ally 16 | . . 16 Total Orders . | . . . Ally Attacks 14 | . . 14 Total Damage 142 | . . 142 Kills 1 | . . 1 Allies Corrupted . | . . . Allies Melted . | . . . Intel | -11 -10 -10 ------- Run | Scr Mat Min Robot Analysis Total . | . . . Derelict Logs Recovered . | . . . Drone Launches . | . . . Drone Recoveries . | . . . Exploration | -11 -10 -10 ------------- Run | Scr Mat Min Turns Passed 745 | 73 367 305 Spaces Moved 367 | 41 171 155 Core 4 | 2 . 2 Treads 363 | 39 171 153 Legs . | . . . Wheels . | . . . Hover . | . . . Flight . | . . . Fastest Speed 50 | 50 160 100 Average Speed 159 | 154 160 159 Slowest Speed 160 | 160 160 160 Overloaded Moves . | . . . Propulsion Burnouts . | . . . Robots Hopped . | . . . Cave-ins Triggered . | . . . Exploration Rate (%) 20 | 3 31 28 Regions Visited 2 Branch Regions 1 Pre-discovered Areas . | . . . Known Exits Taken . | . . . Unknown Exits Taken 2 | 1 1 . Scrap Searched 1 | . . 1 Spaces Dug . | . . . Terrain Destroyed 78 | . . 78 Melee . | . . . Projectile . | . . . AOE 78 | . . 78 Actions | -11 -10 -10 --------- Run | Scr Mat Min Total 450 | 48 215 187 Wait 3 | . . 3 Move 365 | 40 170 155 Hop . | . . . Pick Up 10 | 2 7 1 Fast Attach 7 | 6 1 . Attach 2 | . . 2 Detach . | . . . Swap 2 | . 1 1 Drop 5 | . 4 1 Fire 54 | . 32 22 Melee . | . . . Ram 2 | . . 2 Kick . | . . . Crush . | . . . Escape Stasis . | . . . Rewire . | . . . Trap . | . . . Miscellaneous . | . . . Route ------- -11/Scrapyard -10/Materials -10/Mines (discovered 1 exit: [*Mat]) History --------- Turn | Location | Event 19 | -11/Scrapyard | Discovered new exit (range 16) 74 | -11/Scrapyard | Entered Materials 251 | -10/Materials | Discovered new exit (range 16) 317 | -10/Materials | Build established: Mutant 441 | -10/Materials | Entered Mines 445 | -10/Mines | Assisted by bots powering up and referring to "LRC-V3" 531 | -10/Mines | Discovered new exit (range 5) 666 | -10/Mines | Received a Rocket Launcher from a helpful Derelict 678 | -10/Mines | Assembled infested the area 736 | -10/Mines | Core integrity fell below 50% 743 | -10/Mines | Core integrity fell below 20% 746 | -10/Mines | Destroyed by D-53 Grenadier with Mini Grenade Launcher Last Messages --------------- as-50324 destroyed. U-05 Engineer lays Concrete. Lgt. Treads destroyed. U-05 Engineer lays Concrete. The unstable cave ceiling collapses. U-05 Engineer lays Concrete. The unstable cave ceiling collapses. Rocket Launcher destroyed. Lgt. Assault Rifle destroyed. Lgt. Treads destroyed. Ion Engine destroyed. The unstable cave ceiling collapses. D-53 Grenadier knocked back. The unstable cave ceiling collapses. D-53 Grenadier destroyed. The unstable cave ceiling collapses. Lgt. Cannon destroyed. Slammed into D-53 Grenadier. The unstable cave ceiling collapses. Slammed into D-53 Grenadier. Map ----- +----------------------------------------------------+ | ??## ##????????????????????????????????? | | ??# ##??####?????????????????????????? | | ??# #### ##????????????????????????? | | ??## ## ##???????????????????????? | | ???# =! ########????????????????? | | ???# ## * #????????????????? | | ???## #### ##### #????????????????? | | ????####??# #???# #????????????????? | | ??????????# ##??## ##???????????????? | | ??????????## ####??## #?????????##????? | | ???????????####?????# #???????? ## ? | | ????????????????##### ##????? ? | | ????????????????# ##### | | ????????????????# | | ????????????????# #????? | | ???????????????##### # #### ##????? | | ??????????????## ### ## #????? #?????? | | ?????????????## #?####### #?????????????? | | ????????????## #???????# #?????????????? | | ???????????## #???????# #?????????????? | | ??????????## #????????# #?????????????? | | ??????????# ###??????# #?????????????? | | ?????????## ##?????# #?????????????? | | ?????????# ####### #?????????????? | | ?????????# d # #?????????????? | | ?????????# @ ######?????????????? | | ?????????# % #??????????????????? | | ????????## #?????????????????? | | ????????# ! #????????????????? | | ????????# ## #????????????????? | | ??????? ??## #???????????????? | | ??????##????# ##???????????????? | | ???????????? ##????????????????? | | ???????????# # #### #???????????????? | | ???????????# ??###???????????????? | | ???????????## # % ???????????????????? | | ????????????## #??????????????????? | | ????????????? #??????????????????? | | ????????????? ###??????????????????? | | ????????????? % ????????????????????? | | ?????????????? ?????????????????????? | | ??????????????#### ??????????????????????? | | ?????????????????? ??????????????????????? | | ?????????????????? ???????????????????????? | | ??????????????????????????????????????????? | | ??????????????????????????????????????????? | | ??????????????????????????????????????????? | | ??????????????????????????????????????????? | | ??????????????????????????????????????????? | | ??????????????????????????????????????????? | +----------------------------------------------------+ Best States ------------- Heat Dissipation 25 Energy Generation 10 Energy Capacity 250 Matter Stores 290 Matter Capacity 300 Sight Range 16 Terrain Scan Density 10 Evasion (%) 40 Targeting Accuracy 6 Recoil Reduction 2 Item Schematics ----------------- None Robot Schematics ------------------ None Fabricated ------------ Nothing Alien Tech Used ----------------- None Achievements -------------- Exterminator Challenges ------------ None Game ------ Seed PowerSlugMembrane Manual? 0 Play Time 00:10:12 Cumulative 5.0 hours Start 2020.09.13 @ 20:12:08 End 2020.09.13 @ 20:19:37 Sessions 1 Manual Loads 0 Difficulty Rogue Special Mode None Game No. 6 Rogue 6 Adventurer 0 Explorer 0 Win Type - Total 0 Types 0/0/0/0/0/0/0 Lore% 18 Gallery% 13 Achievement% 25 Wizard Run 0 Options --------- ASCII 1 Keyboard 1 Movement Numpad Keybinds 0 Fullscreen 1 Font 18/SmallcapsGlow Map View 76x50 Tactical HUD 0 Map Filters NONE Filters NONE Steam 1 RUN: 8147e779-113c-4d50-8794-7ea2961a4a15